bitfinex/quotes_BTCUSD_20250522
["timestamp","ask_amount","ask_price","bid_price","bid_amount"]
[1747899437781,0.2786315,110940.0,110930.0,0.93277919]
[1747899437992,0.2786315,110940.0,110930.0,0.9247645]
[1747899438214,0.26961787,110940.0,110930.0,1.2980045]
[1747899438419,0.26961787,110940.0,110930.0,1.30701911]
[1747899438639,0.26060497,110940.0,110930.0,0.052]
[1747899438850,0.26002203,110930.0,110920.0,0.2624445]
[1747899438994,0.26903639,110930.0,110920.0,0.91497992]
[1747899439193,0.26002203,110930.0,110920.0,1.11332057]
[1747899439392,0.26903639,110930.0,110920.0,1.11332065]
[1747899439615,0.26002203,110930.0,110920.0,0.46078539]
[1747899439776,0.26903639,110930.0,110920.0,1.11332065]
[1747899440182,0.26903615,110930.0,110920.0,1.11532065]
[1747899440629,0.27805051,110930.0,110920.0,1.11532065]
[1747899440840,0.27805108,110930.0,110920.0,0.2644445]
[1747899441071,0.26903655,110930.0,110920.0,1.09928997]
[1747899441261,0.26903655,110930.0,110920.0,1.15830523]
[1747899441476,0.26002211,110930.0,110920.0,1.15830523]
[1747899441683,0.0617,110930.0,110920.0,1.17633534]
[1747899441855,0.24199387,110930.0,110920.0,2.31951434]
[1747899442463,0.25100783,110930.0,110920.0,2.31951434]
[1747899442672,0.26002195,110930.0,110920.0,1.61472041]
[1747899442834,0.26903615,110930.0,110920.0,0.9882645]
[1747899443039,0.28706504,110930.0,110920.0,0.96897992]
[1747899443273,0.27805051,110930.0,110920.0,1.15830539]
[1747899444730,0.27805051,110930.0,110920.0,1.15830547]
[1747899444948,0.27805051,110930.0,110920.0,1.16732089]
[1747899445151,0.27805051,110930.0,110920.0,1.50586789]
[1747899445350,0.28706504,110930.0,110920.0,1.15830555]
[1747899445757,0.28706504,110930.0,110920.0,0.96898]
[1747899446149,0.28706504,110930.0,110920.0,0.97799542]
[1747899446341,0.28706504,110930.0,110920.0,0.71555092]
[1747899446690,0.28706569,110930.0,110920.0,0.9599645]
[1747899446846,0.27805108,110930.0,110920.0,0.96898]
[1747899447823,0.28706577,110930.0,110920.0,0.9599645]
[1747899449059,0.27805108,110930.0,110920.0,0.96898]
[1747899449591,0.27805108,110930.0,110920.0,0.9599645]
[1747899449804,0.27805108,110930.0,110920.0,0.96898]
[1747899450449,0.26903655,110930.0,110920.0,1.14929013]
[1747899450663,0.27805108,110930.0,110920.0,1.14929013]
[1747899451128,0.27805108,110930.0,110920.0,0.9599645]
[1747899451344,0.26903655,110930.0,110920.0,1.15830547]
[1747899451576,0.26903655,110930.0,110920.0,1.14929013]
[1747899451790,0.26903655,110930.0,110920.0,1.15830555]
[1747899452273,0.25100799,110930.0,110920.0,1.16732081]
[1747899452414,0.26002235,110930.0,110920.0,1.15830555]
[1747899452616,0.26002235,110930.0,110920.0,1.14929013]
[1747899452860,0.27805149,110930.0,110920.0,0.9599645]
[1747899453776,0.2690368,110930.0,110920.0,0.9599645]
[1747899454190,0.2690368,110930.0,110920.0,0.96897992]
[1747899454390,0.2690368,110930.0,110920.0,0.99414171]
[1747899454831,0.2690368,110930.0,110920.0,0.35062171]
[1747899455038,0.26002293,110930.0,110920.0,0.45240179]
[1747899455283,0.26002293,110930.0,110920.0,0.6896845]
[1747899456120,0.26002293,110930.0,110920.0,0.6876845]
[1747899456574,0.26102293,110930.0,110920.0,0.6876845]
[1747899456790,0.26102293,110930.0,110920.0,0.3144445]
[1747899457009,0.26102293,110930.0,110920.0,0.3124445]
[1747899457205,0.26202293,110930.0,110920.0,0.3124445]
[1747899458974,0.25300848,110930.0,110920.0,0.3124445]
[1747899460049,0.26202284,110930.0,110920.0,0.3124445]
[1747899460271,0.18229387,110930.0,110920.0,1.41832723]
[1747899460477,0.26362187,110930.0,110920.0,0.94879013]
[1747899460691,0.27263607,110930.0,110920.0,0.7594645]
[1747899460900,0.27263607,110930.0,110920.0,0.3124445]
[1747899460901,0.29066504,110930.0,110920.0,0.3124445]
[1747899461106,0.28065043,110930.0,110920.0,0.3124445]
[1747899461307,0.27965043,110930.0,110920.0,0.3124445]
[1747899461514,0.28866496,110930.0,110920.0,0.3124445]
[1747899461716,0.28866569,110930.0,110920.0,0.3124445]
[1747899462044,0.279651,110930.0,110920.0,0.3124445]
[1747899462248,0.28866569,110930.0,110920.0,0.3124445]
[1747899462666,0.26162211,110930.0,110920.0,0.3124445]
[1747899462885,0.27965125,110930.0,110920.0,0.3124445]
[1747899464034,0.27965125,110930.0,110920.0,0.31947444]
[1747899464243,0.27063647,110930.0,110920.0,0.32848994]
[1747899464448,0.27063647,110930.0,110920.0,0.31947444]
[1747899465264,0.27965108,110930.0,110920.0,0.31947444]
[1747899465503,0.21039387,110930.0,110920.0,1.88048501]
[1747899465719,0.18029387,110930.0,110920.0,1.88048501]
[1747899465929,0.18029387,110930.0,110920.0,1.88950002]
[1747899466107,0.25219117,110940.0,110920.0,2.14292918]
[1747899466291,0.26120448,110940.0,110930.0,0.2624445]
[1747899466697,0.19842502,110950.0,110940.0,0.1892915]
[1747899466698,0.24369914,110950.0,110940.0,0.1892915]
[1747899466906,0.26172422,110950.0,110940.0,0.2624445]
[1747899467263,0.27073704,110950.0,110940.0,0.2624445]
[1747899467434,0.25349093,110940.0,110930.0,0.72207306]
[1747899467652,0.25349093,110940.0,110930.0,0.9373496]
[1747899467854,0.25449093,110940.0,110930.0,0.9373496]
[1747899468066,0.25449085,110940.0,110930.0,0.83878959]
[1747899468282,0.25349085,110940.0,110930.0,0.84780395]
[1747899468701,0.25349085,110940.0,110930.0,0.87295685]
[1747899469350,0.25349085,110940.0,110930.0,0.84780395]
[1747899469565,0.25349093,110940.0,110930.0,0.84780395]
[1747899469971,0.25349093,110940.0,110930.0,0.8729584]
[1747899470177,0.25449093,110940.0,110930.0,0.8729584]
[1747899470407,0.24647762,110940.0,110930.0,0.84780395]
[1747899470616,0.25549085,110940.0,110930.0,0.84780395]
[1747899471250,0.25549085,110940.0,110930.0,0.87295949]
[1747899471462,0.25549085,110940.0,110930.0,0.84780395]
[1747899472090,0.25549085,110940.0,110930.0,0.87296152]
[1747899472503,0.26450416,110940.0,110930.0,0.84780404]
[1747899472712,0.24647762,110940.0,110930.0,0.88197708]
[1747899472911,0.25549085,110940.0,110930.0,0.88197724]
[1747899473353,0.19129077,110940.0,110930.0,0.89099103]
[1747899473565,0.20030408,110940.0,110930.0,0.86394819]
[1747899473826,0.18227762,110940.0,110930.0,0.92794819]
[1747899474038,0.18227762,110940.0,110930.0,0.94597667]
[1747899474284,0.18227762,110940.0,110930.0,0.85681783]
[1747899474516,0.18227762,110940.0,110930.0,0.87296321]
[1747899474755,0.19129077,110940.0,110930.0,0.88197741]
[1747899475510,0.18227762,110940.0,110930.0,0.88197741]
[1747899476513,0.18227762,110940.0,110930.0,0.89573142]
[1747899476760,0.23180416,110940.0,110930.0,0.61468666]
[1747899476996,0.26190408,110940.0,110930.0,0.84588251]
[1747899477275,0.28894506,110940.0,110930.0,0.64991851]
[1747899477635,0.27993126,110940.0,110930.0,0.6589332]
[1747899478080,0.27993126,110940.0,110930.0,0.66794781]
[1747899478288,0.27993126,110940.0,110930.0,0.6589332]
[1747899478496,0.27993126,110940.0,110930.0,0.64991851]
[1747899478721,0.28894497,110940.0,110930.0,0.6589332]
[1747899479120,0.27993126,110940.0,110930.0,0.2624445]
[1747899479344,0.27993126,110940.0,110930.0,0.64517919]
[1747899479578,0.26190408,110940.0,110930.0,0.8435022]
[1747899479782,0.27091755,110940.0,110930.0,0.85251665]
[1747899480004,0.27091755,110940.0,110930.0,0.8435022]
[1747899480764,0.2799311,110940.0,110930.0,0.6361645]
[1747899480967,0.2799311,110940.0,110930.0,0.82547306]
[1747899481411,0.002,110940.0,110930.0,0.9375291]
[1747899481621,0.002,110940.0,110930.0,0.95555758]
[1747899482147,0.18227762,110940.0,110930.0,0.94654346]
[1747899482342,0.26460416,110940.0,110930.0,0.82547306]
[1747899482547,0.26460416,110940.0,110930.0,0.84350204]
[1747899482752,0.27361771,110940.0,110930.0,0.6361645]
[1747899482956,0.28263142,110940.0,110930.0,0.37372]
[1747899483148,0.28263151,110940.0,110930.0,0.6361645]
[1747899483382,0.28263151,110940.0,110930.0,0.37372]
[1747899483590,0.28263151,110940.0,110920.0,0.86881493]
[1747899483591,0.25430783,110930.0,110920.0,0.86881493]
[1747899483775,0.25430783,110930.0,110920.0,2.31252356]
[1747899483979,0.25430783,110930.0,110920.0,2.31076272]
[1747899484347,0.24529387,110930.0,110920.0,2.10882372]
[1747899484672,0.25430783,110930.0,110920.0,2.11783873]
[1747899484820,0.25430783,110930.0,110920.0,2.10882372]
[1747899485506,0.25430783,110930.0,110920.0,2.11783873]
[1747899485714,0.25430783,110930.0,110920.0,2.10882372]
[1747899485918,0.25430783,110930.0,110920.0,1.48760979]
[1747899486093,0.25430783,110930.0,110920.0,2.13160979]
[1747899486346,0.25430783,110930.0,110920.0,2.12435562]
[1747899486479,0.25430783,110930.0,110920.0,2.00706162]
[1747899486817,0.25430783,110930.0,110920.0,1.99804701]
[1747899487031,0.25430783,110930.0,110920.0,2.00706219]
[1747899487220,0.25430783,110930.0,110920.0,2.01607712]
[1747899487450,0.25430783,110930.0,110920.0,2.02313286]
[1747899487633,0.25430783,110930.0,110920.0,2.03214787]
[1747899487827,0.26332187,110930.0,110920.0,1.87800066]
[1747899488042,0.26332187,110930.0,110920.0,1.8960311]
[1747899488275,0.25430783,110930.0,110920.0,1.88421948]
[1747899488470,0.27233623,110930.0,110920.0,1.85717403]
[1747899488715,0.26332195,110930.0,110920.0,1.86618929]
[1747899488971,0.26332195,110930.0,110920.0,1.58689403]
[1747899489144,0.26332195,110930.0,110920.0,0.322843]
[1747899489386,0.27233664,110930.0,110920.0,0.05]
[1747899489601,0.28135117,110930.0,110920.0,0.05]
[1747899490005,0.28135117,110930.0,110920.0,0.3124445]
[1747899490292,0.29036578,110930.0,110920.0,0.3124445]
[1747899490718,0.28135166,110930.0,110920.0,0.3124445]
[1747899490877,0.28135166,110930.0,110920.0,0.31959426]
[1747899491088,0.27233705,110930.0,110920.0,0.05714976]
[1747899491294,0.18929085,110940.0,110920.0,3.62205381]
[1747899491533,0.18929085,110940.0,110930.0,0.96252606]
[1747899491534,0.25399085,110940.0,110930.0,0.96252606]
[1747899491751,0.24497762,110940.0,110930.0,0.70909601]
[1747899491957,0.25399085,110940.0,110930.0,0.70909609]
[1747899492174,0.25399077,110940.0,110930.0,0.71811045]
[1747899492353,0.0647,110940.0,110930.0,0.72712457]
[1747899492588,0.20042518,110950.0,110940.0,0.20731852]
[1747899492589,0.06433777,110950.0,110940.0,0.20731852]
[1747899493026,0.06433777,110950.0,110940.0,0.59005183]
[1747899493232,0.00213777,110950.0,110940.0,0.59005183]
[1747899494042,0.00213777,110950.0,110940.0,1.01959739]
[1747899494246,0.00213777,110950.0,110940.0,4.29091439]
[1747899494679,0.00313777,110950.0,110940.0,4.31604813]
[1747899495309,0.00413777,110950.0,110940.0,4.31576813]
[1747899495604,0.00213777,110950.0,110940.0,4.31576813]
[1747899499989,0.00213777,110950.0,110940.0,4.28416813]
[1747899500217,0.00213777,110950.0,110940.0,1.97077613]
[1747899500853,0.00213777,110950.0,110940.0,2.02077613]
[1747899501057,0.00213777,110950.0,110940.0,1.99564239]
[1747899501710,0.00213777,110950.0,110940.0,2.02075232]
[1747899502186,0.00213777,110950.0,110940.0,2.08445232]
[1747899503922,0.002,110970.0,110960.0,0.20728091]
[1747899504123,0.002,110970.0,110960.0,2.94519947]
[1747899504324,0.002,110970.0,110960.0,2.81285047]
[1747899504485,0.002,110970.0,110960.0,1.81902647]
[1747899504683,0.002,110970.0,110960.0,1.84605847]
[1747899504918,0.25423968,110970.0,110960.0,0.95446455]
[1747899505116,0.2542396,110970.0,110960.0,0.66620086]
[1747899505279,0.2722615,110970.0,110960.0,0.95844695]
[1747899505495,0.2722615,110970.0,110960.0,0.61968533]
[1747899505694,0.2722615,110970.0,110960.0,0.22830518]
[1747899505898,0.07401071,110970.0,110960.0,1.15112401]
[1747899506103,0.26325039,110970.0,110960.0,1.16013577]
[1747899506329,0.27226126,110970.0,110960.0,1.16013536]
[1747899506532,0.28127229,110970.0,110960.0,1.15112368]
[1747899506731,0.28127229,110970.0,110960.0,0.003]
[1747899506973,0.2632512,110970.0,110960.0,0.37336]
[1747899507183,0.2632512,110970.0,110960.0,0.003]
[1747899507515,0.2632512,110970.0,110960.0,0.005]
[1747899507721,0.52448017,110970.0,110960.0,0.002]
[1747899507926,0.52448017,110970.0,110960.0,0.004]
[1747899510140,0.51546889,110970.0,110960.0,0.004]
[1747899511587,0.25005722,110960.0,110950.0,0.37336]
[1747899511794,0.25906947,110960.0,110950.0,0.37336]
[1747899512032,0.25906923,110960.0,110950.0,0.37336]
[1747899512501,0.25005681,110960.0,110950.0,0.37336]
[1747899512708,0.26808058,110960.0,110950.0,0.37336]
[1747899512877,0.27709275,110960.0,110950.0,0.37336]
[1747899514718,0.26808156,110960.0,110950.0,0.37336]
[1747899514943,0.25906955,110960.0,110950.0,0.37336]
[1747899515149,0.26048725,110950.0,110940.0,0.05]
[1747899515363,0.26949999,110950.0,110940.0,0.05]
[1747899515620,0.26048725,110950.0,110940.0,0.05]
[1747899516266,0.53072725,110950.0,110940.0,0.05]
[1747899517110,0.0622,110950.0,110940.0,0.23929133]
[1747899517355,0.18026137,110950.0,110940.0,1.009757]
[1747899517570,0.1892737,110950.0,110940.0,1.19904842]
[1747899517779,0.20729886,110950.0,110940.0,0.876288]
[1747899518004,0.28031168,110950.0,110940.0,0.354337]
[1747899518123,0.26228709,110950.0,110940.0,0.05]
[1747899518325,0.42310987,110950.0,110940.0,0.05]
[1747899518555,0.43765072,110950.0,110940.0,0.05]
[1747899518759,0.3663735,110950.0,110940.0,0.05]
[1747899519425,0.62836805,110950.0,110940.0,0.05]
[1747899519630,0.89860805,110950.0,110940.0,0.05]
[1747899520042,0.6366135,110950.0,110940.0,0.05]
[1747899520461,0.6406135,110950.0,110940.0,0.05]
[1747899520662,0.99682893,110950.0,110940.0,0.05]
[1747899520908,0.26102268,110930.0,110920.0,0.052]
[1747899521087,0.26102268,110930.0,110920.0,0.05213777]
[1747899521088,0.62084824,110930.0,110920.0,0.05213777]
[1747899521289,1.00878909,110930.0,110920.0,0.05213777]
[1747899522589,1.01178909,110930.0,110920.0,0.05213777]
[1747899523359,1.01378909,110930.0,110920.0,0.05213777]
[1747899524998,1.02220811,110930.0,110920.0,0.05213777]
[1747899525201,0.63430726,110930.0,110920.0,0.05213777]
[1747899525404,0.36398726,110930.0,110920.0,0.05213777]
[1747899525611,0.62588824,110930.0,110920.0,0.05213777]
[1747899525818,0.35556824,110930.0,110920.0,0.05213777]
[1747899526019,0.53634268,110930.0,110920.0,0.05213777]
[1747899527463,0.53634268,110930.0,110920.0,0.31440863]
[1747899528074,0.53634268,110930.0,110920.0,0.05213777]
[1747899528474,0.26602268,110930.0,110920.0,0.05213777]
[1747899528875,0.53634268,110930.0,110920.0,0.05213777]
[1747899529866,0.26602268,110930.0,110920.0,0.05213777]
[1747899530074,0.53638268,110930.0,110920.0,0.05213777]
[1747899531016,0.20332268,110930.0,110920.0,0.05213777]
[1747899531310,0.20332268,110930.0,110920.0,0.31440863]
[1747899531698,0.26712268,110930.0,110920.0,0.31440863]
[1747899532257,0.53748268,110930.0,110920.0,0.31440863]
[1747899532963,0.62702824,110930.0,110920.0,0.05213777]
[1747899534405,0.62702824,110930.0,110920.0,0.55213777]
[1747899537160,0.36506383,110930.0,110920.0,0.55213777]
[1747899537506,0.63542383,110930.0,110920.0,0.55213777]
[1747899540648,0.71699542,110930.0,110920.0,0.55213777]
[1747899541377,0.63542383,110930.0,110920.0,0.55213777]
[1747899543075,0.91223554,110930.0,110920.0,0.55213777]
[1747899543860,0.92084058,110930.0,110920.0,0.55213777]
[1747899544757,0.65856972,110930.0,110920.0,0.55213777]
[1747899545167,0.65856972,110930.0,110920.0,0.55217777]
[1747899547609,0.38820972,110930.0,110920.0,0.55217777]
[1747899547809,1.03172972,110930.0,110920.0,0.55217777]
[1747899548555,1.04251464,110930.0,110920.0,0.55217777]
[1747899550784,1.04251464,110930.0,110920.0,0.50217777]
[1747899553146,1.66662401,110930.0,110920.0,0.50217777]
[1747899553906,1.65662401,110930.0,110920.0,0.50217777]
[1747899554138,1.66132536,110930.0,110920.0,0.43767777]
[1747899554574,1.67370526,110930.0,110920.0,0.43767777]
[1747899554977,1.93797612,110930.0,110920.0,0.37317777]
[1747899555214,0.5768993,110910.0,110900.0,4e-05]
[1747899555406,1.26483813,110910.0,110900.0,4e-05]
[1747899555546,1.27323372,110910.0,110900.0,4e-05]
[1747899556159,1.29621866,110910.0,110900.0,4e-05]
[1747899556464,1.31221866,110910.0,110900.0,0.00204]
[1747899556870,1.34714539,110910.0,110900.0,0.00204]
[1747899557103,0.71382539,110910.0,110900.0,0.00204]
[1747899557326,1.34714539,110910.0,110900.0,0.00204]
[1747899557481,1.34714539,110910.0,110900.0,0.00304]
[1747899557482,1.35953163,110910.0,110900.0,0.00304]
[1747899557878,1.36953163,110910.0,110900.0,0.00304]
[1747899558082,1.48924731,110910.0,110900.0,0.00304]
[1747899559350,1.41806371,110910.0,110900.0,0.00304]
[1747899560967,1.68033457,110910.0,110900.0,0.00304]
[1747899561868,1.41806371,110910.0,110900.0,0.00304]
[1747899562093,0.77474371,110910.0,110900.0,0.00304]
[1747899562301,1.41810371,110910.0,110900.0,0.00304]
[1747899562500,1.50762522,110910.0,110900.0,0.00304]
[1747899563881,1.49685908,110910.0,110900.0,0.00304]
[1747899565354,1.50762522,110910.0,110900.0,0.00304]
[1747899565566,1.41810371,110910.0,110900.0,0.00304]
[1747899565796,1.40410371,110910.0,110900.0,0.00304]
[1747899566023,1.06410371,110910.0,110900.0,0.00304]
[1747899569579,0.19489976,110890.0,110870.0,0.33444371]
[1747899569780,0.54941933,110880.0,110870.0,0.67444371]
[1747899570140,0.54941933,110880.0,110870.0,0.70474371]
[1747899570618,0.55781492,110880.0,110870.0,0.70474371]
[1747899570793,0.55781492,110880.0,110870.0,0.70525267]
[1747899571194,0.56081492,110880.0,110870.0,0.70525267]
[1747899571779,0.56381492,110880.0,110870.0,0.63307982]
[1747899572690,0.56381492,110880.0,110870.0,0.66417982]
[1747899578032,0.56381492,110880.0,110870.0,0.67173951]
[1747899580637,0.56381492,110880.0,110870.0,0.66417982]
[1747899580770,0.56381492,110880.0,110870.0,0.40190896]
[1747899581623,0.56381492,110880.0,110870.0,0.66417982]
[1747899584144,0.57243305,110880.0,110870.0,0.66417982]
[1747899587012,0.22142616,110880.0,110870.0,0.85359075]
[1747899587228,0.50994245,110880.0,110870.0,0.84457126]
[1747899587476,0.50092443,110880.0,110870.0,0.66417982]
[1747899587679,0.2218263,110880.0,110870.0,0.86261032]
[1747899587891,0.02041369,110880.0,110870.0,1.14291942]
[1747899588104,0.02041361,110880.0,110870.0,1.14291942]
[1747899588316,0.03845006,110880.0,110870.0,1.14291942]
[1747899588521,0.03844998,110880.0,110870.0,0.88064856]
[1747899588728,0.03005439,110880.0,110870.0,0.88064872]
[1747899588927,0.20942957,110880.0,110870.0,0.88064872]
[1747899589182,0.21844808,110880.0,110870.0,0.87162956]
[1747899589391,0.22144808,110880.0,110870.0,0.87162956]
[1747899589558,0.221448,110880.0,110870.0,0.88064872]
[1747899590912,0.221448,110880.0,110870.0,0.87162956]
[1747899591247,0.221448,110880.0,110870.0,0.88966804]
[1747899591423,0.221448,110880.0,110870.0,0.88966755]
[1747899591557,0.221448,110880.0,110870.0,0.88064847]
[1747899592178,0.23046651,110880.0,110870.0,0.87162931]
[1747899592386,0.23046651,110880.0,110870.0,0.88064847]
[1747899593752,0.21242998,110880.0,110870.0,0.86261015]
[1747899593928,0.21242998,110880.0,110870.0,0.88064863]
[1747899594129,0.21242998,110880.0,110870.0,0.87866024]
[1747899594476,0.22144857,110880.0,110870.0,0.87866032]
[1747899594680,0.2034122,110880.0,110870.0,0.66219143]
[1747899595327,0.2034122,110880.0,110870.0,0.32417982]
[1747899595529,0.29295776,110880.0,110870.0,0.06190896]
[1747899596405,0.30139108,110880.0,110870.0,0.06190896]
[1747899597837,0.31593193,110880.0,110870.0,0.00050896]
[1747899598267,0.18944502,110850.0,110840.0,0.4831692]
[1747899598690,0.18944502,110850.0,110840.0,0.22089834]
[1747899598902,0.18944502,110850.0,110840.0,0.4831692]
[1747899599273,0.19846597,110850.0,110840.0,0.4831692]
[1747899599486,0.18944502,110850.0,110840.0,0.4851692]
[1747899600521,0.18944502,110850.0,110840.0,0.002]
[1747899600738,0.18944502,110850.0,110840.0,0.26727086]
[1747899601187,0.18944502,110850.0,110840.0,0.27493891]
[1747899601408,0.18944502,110850.0,110840.0,0.33493891]
[1747899601615,0.18944502,110850.0,110840.0,0.67493891]
[1747899601760,0.18944502,110850.0,110840.0,0.67593891]
[1747899601991,0.18944502,110850.0,110840.0,0.67393891]
[1747899602630,0.18944502,110850.0,110840.0,0.67493891]
[1747899605028,0.18944502,110850.0,110840.0,0.66727086]
[1747899605686,0.45996502,110850.0,110840.0,0.66727086]
[1747899607506,0.19846581,110850.0,110840.0,0.66727086]
[1747899608120,0.18944502,110850.0,110840.0,0.66727086]
[1747899614981,0.18042399,110850.0,110840.0,0.66727086]
[1747899615199,0.18042399,110850.0,110840.0,0.405]
[1747899615405,0.18042399,110850.0,110840.0,0.66727086]
[1747899625750,0.18042399,110850.0,110840.0,0.59879414]
[1747899628581,0.18042399,110850.0,110840.0,0.19579414]
[1747899630379,0.18042399,110850.0,110840.0,0.002]
[1747899630578,0.18042399,110850.0,110840.0,0.53579414]
[1747899631640,0.18042399,110850.0,110840.0,0.59879414]
[1747899632457,0.18042399,110850.0,110840.0,0.25879414]
[1747899632660,0.45098399,110850.0,110840.0,0.002]
[1747899632838,0.54052955,110850.0,110840.0,0.19579414]
[1747899633618,0.54052955,110850.0,110840.0,0.19379414]
[1747899634022,0.54152955,110850.0,110840.0,0.19379414]
[1747899635951,0.1894622,110840.0,110830.0,0.4022]
[1747899636294,0.1894622,110840.0,110830.0,0.59599414]
[1747899637082,0.1894622,110840.0,110830.0,0.59604503]
[1747899637311,0.1894622,110840.0,110830.0,0.59804503]
[1747899639069,0.1894622,110840.0,110830.0,0.60601489]
[1747899640388,0.1984838,110840.0,110830.0,0.79549426]
[1747899640655,0.21652717,110840.0,110830.0,0.79549426]
[1747899640847,0.21652717,110840.0,110830.0,0.61503771]
[1747899641685,0.21652717,110840.0,110830.0,0.60601489]
[1747899642453,0.22554918,110840.0,110830.0,0.61503771]
[1747899642899,0.22554918,110840.0,110830.0,0.80451692]
[1747899642900,0.20750524,110840.0,110830.0,0.80451692]
[1747899643112,0.21652725,110840.0,110830.0,0.804517]
[1747899643314,0.21652725,110840.0,110830.0,0.433917]
[1747899644413,0.21652725,110840.0,110830.0,0.42489426]
[1747899645442,0.21652725,110840.0,110830.0,0.433917]
[1747899646467,0.22202769,110860.0,110840.0,0.27040532]
[1747899646688,0.002,110870.0,110860.0,0.08094011]
[1747899646848,0.002,110870.0,110860.0,1.87236403]
[1747899647052,0.002,110870.0,110860.0,1.95965473]
[1747899647456,0.01026099,110870.0,110860.0,0.81775516]
[1747899647661,0.01927999,110870.0,110860.0,0.83579503]
[1747899647839,0.01927999,110870.0,110860.0,0.78353403]
[1747899648041,0.01026099,110870.0,110860.0,1.10187603]
[1747899648238,0.00124215,110870.0,110860.0,1.10187603]
[1747899648889,0.01026099,110870.0,110860.0,1.10187603]
[1747899649103,0.02227999,110870.0,110860.0,1.10187603]
[1747899649323,0.01026099,110870.0,110860.0,1.10187603]
[1747899649526,0.00124215,110870.0,110860.0,1.10187603]
[1747899649746,0.01126099,110870.0,110860.0,1.10187603]
[1747899650394,0.01226099,110870.0,110860.0,1.10187603]
[1747899650654,0.03377912,110890.0,110870.0,0.34]
[1747899650864,0.03377912,110890.0,110880.0,1.1199243]
[1747899651077,0.03377912,110890.0,110880.0,1.4599243]
[1747899651289,0.5,110900.0,110890.0,1.00120004]
[1747899651497,0.5,110900.0,110890.0,3.0192539]
[1747899651704,0.5,110900.0,110890.0,2.34197014]
[1747899651921,0.50050834,110900.0,110890.0,2.30644814]
[1747899652143,0.50050834,110900.0,110890.0,2.59776095]
[1747899652366,0.02704277,110930.0,110920.0,0.20735566]
[1747899652626,0.04990609,110940.0,110930.0,0.54733696]
[1747899652837,0.04990609,110940.0,110930.0,0.7411311]
[1747899652838,0.32959189,110940.0,110930.0,0.7411311]
[1747899653056,0.33860553,110940.0,110930.0,0.82224371]
[1747899653268,0.50986984,110940.0,110930.0,0.80421523]
[1747899653488,0.23934984,110940.0,110930.0,0.82224396]
[1747899653694,0.23934984,110940.0,110930.0,0.88147703]
[1747899653915,0.23033637,110940.0,110930.0,0.6284499]
[1747899654123,0.23033637,110940.0,110930.0,0.63746418]
[1747899654326,0.23033637,110940.0,110930.0,0.61943554]
[1747899654742,0.49180282,110940.0,110930.0,0.60140648]
[1747899654953,0.49480282,110940.0,110930.0,0.61042109]
[1747899655161,0.49480282,110940.0,110930.0,0.61943562]
[1747899655368,0.32753826,110940.0,110930.0,0.90050559]
[1747899655580,0.49396456,110940.0,110930.0,0.89149147]
[1747899655825,0.49396456,110940.0,110930.0,0.90951995]
[1747899656482,0.30463306,110940.0,110930.0,0.90951946]
[1747899656702,0.00715249,110940.0,110930.0,2.10347982]
[1747899656914,0.00715249,110940.0,110930.0,2.12085253]
[1747899657092,0.00715249,110940.0,110930.0,2.38289402]
[1747899657342,0.00715249,110940.0,110930.0,2.12085253]
[1747899657769,0.00415249,110940.0,110930.0,2.12085253]
[1747899657977,0.00415249,110940.0,110930.0,2.12185253]
[1747899658396,0.00015249,110940.0,110930.0,2.12894166]
[1747899658806,0.00015249,110940.0,110930.0,1.48585066]
[1747899659252,0.002,110950.0,110940.0,0.20731828]
[1747899659458,0.002,110950.0,110940.0,3.81229784]
[1747899659673,0.002,110950.0,110940.0,3.31071184]
[1747899659893,0.002,110950.0,110940.0,3.11874214]
[1747899660104,0.002,110950.0,110940.0,2.47738214]
[1747899660581,0.20028693,110950.0,110940.0,0.0150093]
[1747899660824,0.47068693,110950.0,110940.0,0.0150093]
[1747899661041,0.63687334,110950.0,110940.0,0.0150093]
[1747899661465,0.63687334,110950.0,110940.0,0.0110093]
[1747899661681,0.63687334,110950.0,110940.0,0.0140093]
[1747899661896,0.8988656,110950.0,110940.0,0.0140093]
[1747899662315,0.8988656,110950.0,110940.0,0.0170093]
[1747899662527,0.8988656,110950.0,110940.0,0.0140093]
[1747899662956,0.9028656,110950.0,110940.0,0.0150093]
[1747899663176,0.99238711,110950.0,110940.0,0.001]
[1747899663647,1.00473243,110950.0,110940.0,0.001]
[1747899663857,0.91521092,110950.0,110940.0,0.001]
[1747899665822,0.20735566,110920.0,110900.0,1.07101747]
[1747899666022,0.20735566,110920.0,110910.0,0.00015249]
[1747899666356,0.18932506,110920.0,110910.0,0.18949519]
[1747899666568,0.46869726,110930.0,110920.0,0.18932555]
[1747899666777,0.46869726,110930.0,110910.0,2.43400328]
[1747899666778,0.00901477,110920.0,110910.0,0.24062628]
[1747899666989,0.00901477,110920.0,110910.0,2.10430928]
[1747899667418,0.01802962,110920.0,110910.0,2.10430928]
[1747899667622,0.20735468,110920.0,110910.0,1.5811031]
[1747899667828,0.00901477,110920.0,110910.0,1.93011885]
[1747899668036,0.0180297,110920.0,110910.0,1.96061885]
[1747899668464,0.001,110930.0,110920.0,0.58005566]
[1747899668674,0.001,110930.0,110920.0,2.88136466]
[1747899669090,0.19932203,110930.0,110920.0,2.82878574]
[1747899669305,0.01001396,110930.0,110920.0,1.46373867]
[1747899669510,0.00901396,110930.0,110920.0,1.46373867]
[1747899670151,0.01101396,110930.0,110920.0,1.46373867]
[1747899670358,0.002,110930.0,110920.0,1.46373867]
[1747899670576,0.01101396,110930.0,110920.0,1.46373867]
[1747899670991,0.01201396,110930.0,110920.0,1.46373867]
[1747899671687,0.003,110930.0,110920.0,1.46373867]
[1747899671904,0.01201396,110930.0,110920.0,1.46373867]
[1747899672939,0.003,110930.0,110920.0,1.46373867]
[1747899675791,0.003,110930.0,110920.0,1.46377867]
[1747899677061,0.003,110930.0,110920.0,1.32583867]
[1747899679420,0.003,110930.0,110920.0,1.41538423]
[1747899682340,0.003,110930.0,110920.0,1.45493784]
[1747899682757,0.003,110930.0,110920.0,1.48197484]
[1747899683103,0.002,110930.0,110920.0,1.48197484]
[1747899683301,0.002,110950.0,110940.0,0.54731828]
[1747899683504,0.002,110950.0,110940.0,4.11895384]
[1747899683726,0.002,110950.0,110940.0,4.01959084]
[1747899683941,0.002,110950.0,110940.0,3.97969984]
[1747899684144,0.002,110950.0,110940.0,2.83230884]
[1747899684437,0.002,110950.0,110940.0,2.86540884]
[1747899685013,0.004,110950.0,110940.0,2.86540884]
[1747899686052,0.007,110950.0,110940.0,2.86540884]
[1747899686482,0.007,110950.0,110940.0,2.84738198]
[1747899686687,0.23608709,110950.0,110940.0,0.36054]
[1747899687102,0.20528709,110950.0,110940.0,0.36054]
[1747899687324,0.23698709,110950.0,110940.0,0.36054]
[1747899687535,0.23698709,110950.0,110940.0,0.70054]
[1747899688188,0.22797435,110950.0,110940.0,0.70054]
[1747899689014,0.26097435,110950.0,110940.0,0.70054]
[1747899689500,0.53125435,110950.0,110940.0,0.70054]